Cogmind - Beta 13 @@@ ROGUE MODE // 2024.06.27 @ 00:51:19 Player: celerysam Result: Destroyed by G-34 Mercenary with Small Laser Performance ------------- Evolutions (0) 0 Regions Visited (1) 200 Robots Destroyed (6) 30 Value Destroyed (217) 217 Prototype IDs (0) 0 Alien Tech Used (0) 0 Bonus (0) 0 TOTAL SCORE: 447 Bonus ------- None Cogmind --------- Core Integrity 0/250 Matter 340/450 Energy 250/250 System Corruption 0% Temperature Cool (6) Movement Core (250) Ox4 Location -10/Materials Parts ------- > --- POWER (1) -------- Ion Engine > --- PROPULSION (2) --- (None) > --- UTILITY (2) ------ Small Storage Unit Large Matter Pod > --- WEAPON (2) ------- Assault Rifle > --- INVENTORY (8) ---- Ion Engine Ion Engine Light Treads Aluminum Leg Aluminum Leg Wheel Peak State ------------ > --- POWER ------------ Light Ion Engine > --- PROPULSION ------- Aluminum Leg Aluminum Leg > --- UTILITY ---------- Small Storage Unit > --- WEAPON ----------- Medium Laser Assault Rifle > --- INVENTORY -------- Light Ion Engine Light Treads Light Treads Wheel Compact Wheel Light Assault Rifle [Rating: 6] Favorites ----------- Power Light Ion Engine Engine Light Ion Engine Propulsion Aluminum Leg Treads Light Treads Leg Aluminum Leg Wheel Wheel Utility Small Storage Unit Storage Small Storage Unit Weapon Assault Rifle Energy Gun Medium Laser Ballistic Gun Assault Rifle Build | -11 -10 ------- Run | Yrd Mat Slots Evolved . | . . Power . | . . Propulsion . | . . Utility . | . . Weapon . | . . Parts Attached 15 | 4 11 Power 3 | 1 2 Engine 3 | 1 2 Core . | . . Reactor . | . . Propulsion 6 | 2 4 Treads 2 | . 2 Leg 2 | 2 . Wheel 2 | . 2 Hover . | . . Flight . | . . Utility 2 | 1 1 Device . | . . Storage 2 | 1 1 Processor . | . . Hackware . | . . Protection . | . . Artifact . | . . Weapon 4 | . 4 Energy Gun 1 | . 1 Energy Cannon . | . . Ballistic Gun 3 | . 3 Ballistic Cannon . | . . Launcher . | . . Special Weapon . | . . Impact Weapon . | . . Slashing Weapon . | . . Piercing Weapon . | . . Special Melee Weapon . | . . Unidentified Prototypes . | . . Parts Lost 9 | . 9 Power 2 | . 2 Propulsion 4 | . 4 Utility . | . . Weapon 3 | . 3 Highest Loss Streak 5 | . 5 To Critical Strikes . | . . Average Slot Usage (%) 75 | . 75 Engine 10 | . 10 Treads 7 | . 7 Leg 17 | . 17 Wheel 1 | . 1 Storage 15 | . 15 Energy Gun 7 | . 7 Ballistic Gun 13 | . 13 Naked Turns . | . . Heaviest Build 15 | 8 15 Greatest Support 40 | 20 40 Greatest Overweight (x) 4 | 1 4 Average Overweight (x) . | . . Largest Inventory Capacity 8 | 8 8 Average Capacity 7 | 7 8 Most Carried 8 | 8 8 Average Carried 6 | 6 6 Final Capacity 8 | 8 8 Final Carried 8 | 8 6 Class Distribution -------------------- 100% | Mutant Dominant Class ---------------- Mutant | -10/Materials Resources | -11 -10 ----------- Run | Yrd Mat Matter Collected 421 | 240 181 Remotely . | . . Salvage Created 257 | . 257 Parts 11 | . 11 Haulers Intercepted . | . . Recyclers Shooed . | . . Parts Field Recycled . | . . Retrieved Matter . | . . Parts Self-Destructed . | . . Prevented . | . . Kills | -11 -10 ------- Run | Yrd Mat Combat Hostiles Destroyed 6 | . 6 Guns 6 | . 6 Classes Destroyed 1 | . 1 Grunt 6 | . 6 Best Kill Streak 2 | . 2 Combat Bots Only 2 | . 2 Max Kills in Single Turn 1 | . 1 Gunslinging . | . . Exploded . | . . Melee . | . . Uniques/NPCs Destroyed . | . . Combat | -11 -10 -------- Run | Yrd Mat Hostile Shots Fired 170 | . 170 Missed 66 | . 66 Damage Taken 1265 | . 1265 Core 258 | . 258 Absorbed by Shields . | . . Core Remaining (%) 100 | 100 . Volleys Fired 40 | . 40 Largest 1 | . 1 Hottest 20 | . 20 Shots Fired 40 | . 40 Gun 40 | . 40 Cannon . | . . Launcher . | . . Special . | . . Kinetic 40 | . 40 Thermal . | . . Explosive . | . . Electromagnetic . | . . Robot Hit Streak 6 | . 6 Robot Miss Streak 3 | . 3 Penetration Max . | . . Secondary Targets . | . . Shots Hit Robots 28 | . 28 Core Hits 14 | . 14 Critical Kills . | . . Critical Parts Destroyed 1 | . 1 Critical Strikes 1 | . 1 Destroy 1 | . 1 Melee Attacks . | . . Impact . | . . Slashing . | . . Piercing . | . . Sneak Attacks . | . . Combat Hostiles . | . . Follow-up Attacks . | . . Damage Inflicted 327 | . 327 Guns 313 | . 313 Cannons . | . . Explosions . | . . Melee . | . . Ramming 14 | . 14 Kinetic 313 | . 313 Thermal . | . . Explosive . | . . Electromagnetic . | . . Impact . | . . Slashing . | . . Piercing . | . . Highest Corruption . | . . Average Corruption . | . . Corruption Purged . | . . Corruption Blocked . | . . Overload Shots . | . . Overflow Damage . | . . Projectiles . | . . Explosions . | . . Melee . | . . Knockbacks . | . . Impact . | . . Kinetic . | . . Secondary . | . . Self-Inflicted Damage 5 | . 5 Shots . | . . Rammed 2 | . 2 Targets Rammed 2 | . 2 Kicked . | . . Crushed . | . . Highest Temperature 21 | . 21 Average Temperature 4 | . 4 Received Heat Transfer 690 | . 690 Siege Activations . | . . Robots Corrupted . | . . Combat Hostiles . | . . Parts Fried . | . . Impact Corruptions . | . . Robots Melted . | . . Combat Hostiles . | . . Parts Melted . | . . Heat Transferred . | . . Parts Sabotaged . | . . Parts Stolen . | . . Parts Stripped . | . . Power Chain Reactions . | . . Alert | -11 -10 ------- Run | Yrd Mat Peak Influence 235 | . 235 Initial . | . . Average 47 | . 55 Maximum Alert Level 1 | . 1 Low Security (%) 96 | 100 95 Level 1 3 | . 4 Level 2 . | . . Level 3 . | . . Level 4 . | . . Level 5 . | . . High Security . | . . Max Security . | . . Squads Dispatched 4 | . 4 Investigation 2 | . 2 Extermination . | . . Reinforcement 2 | . 2 Assault . | . . Garrison . | . . Intercept . | . . Searches Triggered . | . . Construction Impeded . | . . Haulers Reinforced . | . . Active Scanning Responses . | . . Cargo Convoy Interrupts . | . . Stealth | -11 -10 --------- Run | Yrd Mat Distress Signals 2 | . 2 Communications Jammed . | . . Distress Signals . | . . Times Spotted 19 | . 19 Peak Tracking Total 8 | . 8 Tactical Retreats 1 | . 1 Traps | -11 -10 ------- Run | Yrd Mat Traps Triggered 2 | . 2 Indirectly . | . . Trap Hack Attempts . | . . Triggered . | . . Disarmed . | . . Reprogrammed . | . . Reused . | . . Traps Extracted . | . . Installed . | . . Triggered . | . . Machines | -11 -10 ---------- Run | Yrd Mat Machines Disabled . | . . Max in Single Turn . | . . Machines Repaired . | . . Machines Dismantled . | . . Machines Sabotaged . | . . Overloaded Fab Kills . | . . Hacking | -11 -10 --------- Run | Yrd Mat Machines Accessed . | . . Terminals . | . . Fabricators . | . . Repair Stations . | . . Recycling Units . | . . Scanalyzers . | . . Garrison Access . | . . Total Hacks . | . . Successful . | . . Failed . | . . Catastrophic . | . . Database Lockouts . | . . Manual . | . . Terminals . | . . Fabricators . | . . Repair Stations . | . . Recycling Units . | . . Scanalyzers . | . . Garrison Access . | . . Terminal Hacks . | . . Fabricator Hacks . | . . Repair Station Hacks . | . . Recycling Unit Hacks . | . . Scanalyzer . | . . Garrison Access Hacks . | . . Unauthorized Hacks . | . . Terminals . | . . Fabricators . | . . Repair Stations . | . . Recycling Units . | . . Scanalyzers . | . . Garrison Access . | . . Data Cores Recovered . | . . Used . | . . Hacking Detections . | . . Full Trace Events . | . . Feedback Events . | . . Feedback Blocked . | . . Robot Schematics Acquired . | . . Robots Built . | . . Authchips . | . . Time . | . . Total Robot Build Rating . | . . Part Schematics Acquired . | . . Parts Built . | . . Authchips . | . . Time . | . . Total Part Build Rating . | . . Parts Repaired . | . . Time . | . . Parts Recycled . | . . Recycled Matter . | . . Retrieved Matter . | . . Retrieved Components . | . . Parts Scanalyzed . | . . Part Schematics Acquired . | . . Parts Damaged . | . . Bothacking | -11 -10 ------------ Run | Yrd Mat Used RIF Installer . | . . Robots Hacked . | . . Non-combat . | . . Combat . | . . Robot Hacks Applied . | . . Relay Couplers Released . | . . Fabnet Peak Effective % . | . . Robots Rewired . | . . Allies Hacked . | . . Hacks Repelled . | . . Allies | -11 -10 -------- Run | Yrd Mat Total Allies . | . . Largest Group . | . . Highest-Rated Group . | . . Highest-Rated Ally . | . . Total Orders . | . . Ally Attacks . | . . Total Damage . | . . Kills . | . . Allies Corrupted . | . . Allies Melted . | . . Intel | -11 -10 ------- Run | Yrd Mat Robot Analysis Total . | . . Derelict Logs Recovered . | . . Drone Launches . | . . Drone Recoveries . | . . Exploration | -11 -10 ------------- Run | Yrd Mat Turns Passed 445 | 65 380 Spaces Moved 283 | 55 228 Core 32 | 31 1 Treads 27 | . 27 Legs 214 | 24 190 Wheels 10 | . 10 Hover . | . . Flight . | . . Fastest Speed 50 | 50 80 Average Speed 117 | 92 123 Slowest Speed 250 | 120 250 Overloaded Moves . | . . Propulsion Burnouts . | . . Robots Hopped . | . . Cave-ins Triggered . | . . Exploration Rate (%) 26 | 4 48 Regions Visited 1 Branch Regions . Pre-discovered Areas . | . . Known Exits Taken . | . . Unknown Exits Taken 1 | 1 . Scrap Searched . | . . Spaces Dug . | . . Terrain Destroyed . | . . Melee . | . . Projectile . | . . AOE . | . . Terrain Rammed . | . . Walls Destroyed . | . . Machines Disabled . | . . Actions | -11 -10 --------- Run | Yrd Mat Total 355 | 67 288 Wait . | . . Move 282 | 54 228 Hop . | . . Pick Up 16 | 9 7 Fast Attach 3 | 3 . Attach 10 | 1 9 Detach . | . . Swap 2 | . 2 Drop . | . . Fire 40 | . 40 Melee . | . . Ram 1 | . 1 Kick . | . . Crush 1 | . 1 Escape Stasis . | . . Rewire . | . . Trap . | . . Miscellaneous . | . . Route ------- -11/Scrapyard -10/Materials History --------- Turn | Location | Event 20 | -11/Scrapyard | Discovered new exit (range 16) 66 | -11/Scrapyard | Entered Materials 324 | -10/Materials | Build established: Mutant 355 | -10/Materials | Lost 5 parts (1p2n2w) 367 | -10/Materials | Core integrity fell below 50% 401 | -10/Materials | Core integrity fell below 20% 446 | -10/Materials | Destroyed by G-34 Mercenary with Small Laser Last Messages --------------- 00351_ Acquired 39 matter. 00351_ R-06 Scavenger collects Ion Engine. 00354_ Acquired Aluminum Leg. 00371_ G-34 Mercenary destroyed. 00375_ Acquired 48 matter. 00378_ Acquired Ion Engine. 00381_ Lgt. Assault Rifle destroyed. 00382_ Slammed into G-34 Mercenary. 00393_ Acquired Assault Rifle. 00400_ G-34 Mercenary destroyed. 00410_ R-06 Scavenger collects Sml. Laser. 00413_ R-06 Scavenger collects Aluminum Leg. 00416_ G-34 Mercenary suffers critical hit (Destroy). 00416_ Destroyed Aluminum Leg. 00428_ Lgt. Treads destroyed. 00430_ G-34 Mercenary destroyed. 00432_ Acquired 48 matter. 00433_ Lgt. Treads destroyed. 00442_ Acquired Ion Engine. 00443_ G-47 Trooper destroyed. Map ----- +----------------------------------------------------+ | ???????????????????????????????# | | ???????????????????????????????# | | ???????????????????????????????# | | ???????????????????????????????# | | ???????????????????????????????# | | ?????????????????????????????? | | ??????????????????????????????# | | ??????????????????????????????# | | ??????????????????????????????# | | ???????????????????????????????[ | | ????????????????????????????????# | | ????????????????????????????????# | | ????????????????????????????????# | | ????????????????????????????????# | | ????????????????????????????????# | | ????????????????????????????????# | | ????????????????????????????????# | | ????????????????????????????????# | | ????????????????????????????????# | | ????????###+####????????????????# | | ????????? #????????######### | | ?????????? #????????# """ # | | ??????????? #????????# """ # | | ??########## #????????# """ + | | ??# # #????????# # | | ??# """ @# #????????# # | | ??# """ %g% ################## | | ??# """ [#* | | ??# # | | ??# """ # | | ??# """ ### ##################/ | | ??# """ #?# #?????? "T" | | ???? #?# #?????# | | ???#########?# #?????# """ | | ?????????????# #?????# """ | | ?????????????# #?????# """ | | ?????????????# #?????#######+##### | | ?????????????# #????????? | | ??????######?# ########## | | ??????# # | | ??????#""" # ######## ######??? | | ??????#""" + + # #!!!#???? | | ??????#""" # # """ # #!%!#???? | | ??????# # # """ # #!! #???? | | ??????# ! ?# #?""" # # #???? | | ??????######?# #? # # ##### | | ?????????????# #??T" # # ?# | | ?????????????# #??##### # ?#"" | | ??????????#### ######## ##+###"Y | | ??????????# #"" | +----------------------------------------------------+ Best States ------------- Heat Dissipation 25 Energy Generation 10 Energy Capacity 250 Matter Stores 349 Matter Capacity 450 Sight Range 16 Terrain Scan Density 10 Evasion (%) 55 Recoil Reduction 2 Item Schematics ----------------- None Robot Schematics ------------------ None Fabricated ------------ Nothing Alien Tech Used ----------------- None Achievements -------------- None Challenges ------------ None Game ------ Seed ShadingSystemLattice Manual? 0 Play Time 00:08:19 Cumulative 69.9 hours Start 2024.06.27 @ 00:43:24 End 2024.06.27 @ 00:51:19 Sessions 1 Manual Loads 0 Difficulty Rogue Special Mode None Game No. 103 Rogue 103 Adventurer 0 Explorer 0 Win Type - Total 0 Types 0/0/0/0/0/0/0/0/0 Lore% 34 Gallery% 49 Achievement% 33 Wizard Run 0 Options --------- Layout 0 ASCII 0 Keyboard 0 Movement Mouse Keybinds 0 Fullscreen 1 Font 24/Smallcaps Map View 76x50 Zoom Use 0% Tactical HUD 1 Map Filters NONE Filters NONE Steam 1 RUN: 09c67f60-9b06-4633-a448-3b2eb7ab93d0